bitfinex-derivatives/quotes_SOLF0:USTF0_20250124
["timestamp","ask_amount","ask_price","bid_price","bid_amount"]
[1737722856461,3.7688,265.32,265.28,0.02780052]
[1737722856759,0.02521582,265.33,265.28,0.02780052]
[1737722858058,0.02521582,265.33,265.32,5.68846413]
[1737722862261,0.02521582,265.33,265.32,9.45726413]
[1737722864566,5.68846413,265.47,265.36,3.7682]
[1737722864770,4.9833,265.46,265.39,5.68846413]
[1737722865068,8.7502,265.46,265.39,5.68846413]
[1737722865568,4.9833,265.46,265.39,5.68846413]
[1737722865867,0.02471067,265.45,265.41,3.7675]
[1737722866970,0.02471067,265.45,265.4,0.02453228]
[1737722867364,0.02471067,265.45,265.42,5.68846413]
[1737722867570,0.02471067,265.45,265.44,3.7671]
[1737722875074,8.20846413,265.56,265.42,5.68846413]
[1737722875381,8.20846413,265.56,265.5,3.7662]
[1737722876075,3.7655,265.55,265.5,3.7662]
[1737722876276,3.7655,265.55,265.5,3.79152578]
[1737722876476,8.23332813,265.56,265.5,0.02532578]
[1737722876679,3.7658,265.53,265.5,0.02532578]
[1737722876871,9.45426413,265.53,265.5,0.02532578]
[1737722877475,8.23332813,265.56,265.5,0.02532578]
[1737722877678,3.7657,265.54,265.5,0.02532578]
[1737722879981,9.45436413,265.53,265.5,0.02532578]
[1737722880285,5.68846413,265.53,265.5,0.02532578]
[1737722880484,3.766,265.52,265.5,0.02532578]
[1737722880786,5.68846413,265.53,265.5,0.02532578]
[1737722881078,3.766,265.52,265.5,0.02532578]
[1737722884583,3.7661,265.51,265.5,0.02532578]
[1737722884887,5.68846413,265.53,265.5,0.02532578]
[1737722885089,3.7661,265.52,265.5,0.02532578]
[1737722885688,5.68846413,265.53,265.5,0.02532578]
[1737722885892,3.7661,265.51,265.5,0.02532578]
[1737722886593,5.68846413,265.53,265.5,0.02532578]
[1737722886891,3.7659,265.53,265.5,0.02532578]
[1737722887393,5.68846413,265.55,265.5,0.02532578]
[1737722887696,3.7657,265.54,265.5,0.02532578]
[1737722888789,0.024864,265.56,265.5,0.02532578]
[1737722888991,0.024864,265.56,265.51,5.68846413]
[1737722890397,0.024864,265.56,265.53,5.68846413]
[1737722890995,0.024864,265.56,265.55,5.68846413]
[1737722891987,0.024864,265.56,265.55,9.45396413]
[1737722893595,3.7643,265.64,265.58,3.7651]
[1737722893796,3.7643,265.64,265.62,5.68846413]
[1737722894497,2.52,265.67,265.62,5.68846413]
[1737722894696,3.7641,265.66,265.62,5.68846413]
[1737722894892,3.79040511,265.66,265.62,5.68846413]
[1737722895091,0.02630511,265.66,265.65,5.68846413]
[1737722896300,3.7628,265.75,265.69,3.7635]
[1737722896496,2.52,265.79,265.7,5.68846413]
[1737722896699,5.68846413,265.8,265.7,5.68846413]
[1737722896991,5.68846413,265.77,265.67,5.68846413]
[1737722897698,5.68846413,265.77,265.69,0.02497229]
[1737722897699,0.0251837,265.75,265.69,0.02497229]
[1737722899093,5.68846413,265.73,265.69,0.02497229]
[1737722899299,5.68846413,265.73,265.64,5.68846413]
[1737722899997,3.7635,265.7,265.64,5.68846413]
[1737722900493,3.79135529,265.7,265.64,5.7161253]
[1737722900900,3.7636,265.69,265.64,5.7161253]
[1737722902799,5.71631942,265.7,265.64,0.02766117]
[1737722903200,5.68846413,265.67,265.64,0.02766117]
[1737722903396,2.52,265.66,265.64,0.02766117]
[1737722905698,3.7641,265.65,265.64,0.02766117]
[1737722906496,2.52,265.66,265.64,0.02766117]
[1737722907698,2.52,265.66,265.64,3.79186117]
[1737722908401,2.52,265.66,265.64,0.02766117]
[1737722910405,2.52,265.66,265.65,5.68846413]
[1737722910603,0.02785529,265.7,265.65,9.45256413]
[1737722911805,0.02785529,265.7,265.66,3.7639]
[1737722912307,0.02785529,265.7,265.64,0.02766117]
[1737722913710,3.79135529,265.7,265.64,3.79186117]
[1737722914208,3.79135529,265.7,265.65,5.68846413]
[1737722914709,0.02785529,265.7,265.67,3.7638]
[1737722916406,0.02785529,265.7,265.65,9.45246413]
[1737722917207,0.02785529,265.7,265.64,3.79186117]
[1737722917609,3.79125529,265.7,265.64,0.02766117]
[1737722918607,0.02785529,265.7,265.64,0.02766117]
[1737722918809,3.7637,265.68,265.64,0.02766117]
[1737722921711,0.02785529,265.7,265.64,0.02766117]
[1737722921907,0.02785529,265.7,265.66,3.7639]
[1737722922210,0.02785529,265.7,265.65,5.68846413]
[1737722923411,0.02785529,265.7,265.68,5.68846413]
[1737722923707,0.02785529,265.7,265.69,3.7635]
[1737722924111,0.02785529,265.7,265.68,5.68846413]
[1737722925212,0.02785529,265.7,265.68,9.45216413]
[1737722925811,0.02785529,265.7,265.68,5.68846413]
[1737722926613,5.68846413,265.82,265.68,186.91156004]
[1737722926813,5.68846413,265.82,265.73,5.68846413]
[1737722927013,3.7625,265.77,265.7,5.68846413]
[1737722927606,3.7625,265.77,265.68,181.22309591]
[1737722927607,0.02463207,265.76,265.73,9.45136413]
[1737722930718,0.02463207,265.76,265.73,5.68846413]
[1737722931314,0.02463207,265.76,265.74,3.7628]
[1737722931617,0.02463207,265.76,265.71,0.02404281]
[1737722932810,0.02463207,265.76,265.71,3.78724281]
[1737722934114,0.02463207,265.76,265.73,5.68846413]
[1737722934920,3.78723207,265.76,265.71,0.02404281]
[1737722935618,3.7629,265.74,265.71,0.02404281]
[1737722936020,3.7631,265.72,265.71,0.02404281]
[1737722937714,0.02463207,265.76,265.71,0.02404281]
[1737722938823,3.7628,265.75,265.71,0.02404281]
[1737722939123,0.02463207,265.76,265.71,0.02404281]
[1737722939825,0.02463207,265.76,265.73,5.68846413]
[1737722941317,0.02463207,265.76,265.71,0.02404281]
[1737722943827,3.78723207,265.76,265.71,0.02404281]
[1737722944230,0.02463207,265.76,265.71,0.02404281]
[1737722945726,0.02463207,265.76,265.71,3.78714281]
[1737722946221,0.02463207,265.76,265.72,3.763]
[1737722946627,0.02463207,265.76,265.71,0.02404281]
[1737722948336,3.7628,265.75,265.71,0.02404281]
[1737722948633,5.68846413,265.72,265.71,0.02404281]
[1737722948931,9.45156413,265.72,265.71,0.02404281]
[1737722949336,5.68846413,265.75,265.71,0.02404281]
[1737722949532,3.7631,265.73,265.71,0.02404281]
[1737722950733,3.7631,265.72,265.71,0.02404281]
[1737722953740,5.68846413,265.75,265.71,0.02404281]
[1737722954131,0.02463207,265.76,265.71,0.02404281]
[1737722954336,0.02463207,265.76,265.71,5.71250694]
[1737722955437,0.02463207,265.76,265.71,9.47560694]
[1737722956139,0.02463207,265.76,265.72,3.7631]
[1737722957037,0.02463207,265.76,265.75,3.7627]
[1737722957237,0.02463207,265.76,265.74,5.68846413]
[1737722958140,0.02463207,265.76,265.75,3.7627]
[1737722958343,9.44996413,265.84,265.74,5.68846413]
[1737722958642,11.96996413,265.84,265.74,5.68846413]
[1737722958840,8.20846413,265.84,265.74,5.68846413]
[1737722959041,3.7617,265.82,265.74,5.68846413]
[1737722959738,3.7878619,265.81,265.75,0.02752188]
[1737722960742,0.0259619,265.81,265.75,3.79012188]
[1737722962644,3.7625,265.77,265.75,0.02752188]
[1737722963445,3.7624,265.77,265.75,0.02752188]
[1737722963646,5.68846413,265.79,265.75,0.02752188]
[1737722964647,9.45076413,265.79,265.75,0.02752188]
[1737722964848,5.68846413,265.79,265.75,0.02752188]
[1737722966253,5.71442603,265.81,265.75,0.02752188]
[1737722967240,3.7621,265.79,265.75,0.02752188]
[1737722970150,5.71442603,265.81,265.75,0.02752188]
[1737722971251,3.7880619,265.81,265.75,0.02752188]
[1737722971552,6.3080619,265.81,265.75,0.02752188]
[1737722972453,2.5459619,265.81,265.75,0.02752188]
[1737722972649,3.7621,265.8,265.75,0.02752188]
[1737722973844,2.5459619,265.81,265.75,0.02752188]
[1737722974045,2.5459619,265.81,265.75,3.79032188]
[1737722974251,0.0259619,265.81,265.75,3.79032188]
[1737722975249,0.0259619,265.81,265.75,3.79052188]
[1737722976850,0.0259619,265.81,265.75,0.02752188]
[1737722977047,0.0259619,265.81,265.76,3.7629]
[1737722978445,0.0259619,265.81,265.77,3.7627]
[1737722980448,0.0259619,265.81,265.75,0.02752188]
[1737722980643,0.0259619,265.81,265.77,3.7626]
[1737722980847,0.0259619,265.81,265.75,0.02752188]
[1737722981244,0.0259619,265.81,265.77,5.68846413]
[1737722984350,0.0259619,265.81,265.77,9.45116413]
[1737722985247,15.07383471,265.93,265.8,5.68846413]
[1737722985452,12.25118582,265.93,265.85,5.68846413]
[1737722985851,5.15353458,265.93,265.85,5.68846413]
[1737722986054,5.15353458,265.93,265.91,5.68846413]
[1737722987043,5.15353458,265.93,265.89,0.02498465]
[1737722987451,5.15353458,265.93,265.89,3.78598465]
[1737722987851,5.15353458,265.93,265.89,0.02498465]
[1737722988250,0.0268681,265.95,265.89,0.02498465]
[1737722988652,0.0268681,265.95,265.91,5.68846413]
[1737722989452,0.0268681,265.95,265.91,9.44926413]
[1737722990256,0.0268681,265.95,265.91,5.68846413]
[1737722992851,3.7609,265.9,265.89,0.02498465]
[1737722994453,0.0268681,265.95,265.89,9.47444878]
[1737722994658,0.0268681,265.95,265.92,5.68846413]
[1737722998962,3.7605,265.94,265.92,5.68846413]
[1737722999162,3.7605,265.94,265.89,5.71344878]
[1737722999857,5.71533223,265.95,265.89,0.02498465]
[1737723001162,3.7608,265.92,265.89,0.02498465]
[1737723001461,5.71533223,265.95,265.89,0.02498465]
[1737723001756,3.7605,265.94,265.89,0.02498465]
[1737723001962,5.71533223,265.95,265.89,0.02498465]
[1737723002158,0.0268681,265.95,265.89,5.71344878]
[1737723002357,3.7871681,265.95,265.89,5.71344878]
[1737723002561,0.0268681,265.95,265.89,5.71344878]
[1737723003362,0.0268681,265.95,265.92,5.68846413]
[1737723004159,5.68846413,266.08,265.92,186.91156004]
[1737723004365,2.5925,266.1,266.01,5.68846413]
[1737723004565,0.69099414,266.09,266.01,5.68846413]
[1737723004864,0.69099414,266.09,266.02,3.7591]
[1737723005260,2.5925,266.1,266.01,5.68846413]
[1737723005461,2.5925,266.1,266.03,0.02843963]
[1737723007460,2.5925,266.1,266.04,5.68846413]
[1737723008162,1.2849,266.11,266.04,5.68846413]
[1737723008363,5.68846413,266.14,266.07,5.68846413]
[1737723008569,2.52,266.16,266.07,5.68846413]
[1737723008763,6.2774,266.16,266.07,5.68846413]
[1737723008961,6.2774,266.16,266.09,0.02554931]
[1737723009370,2.52,266.16,266.1,5.68846413]
[1737723009672,2.52,266.18,266.13,5.68846413]
[1737723009868,3.7569,266.19,266.13,5.68846413]
[1737723010268,2.52,266.2,266.13,5.68846413]
[1737723010269,2.52,266.2,266.13,5.71298915]
[1737723010469,6.2767,266.2,266.13,5.71298915]
[1737723010976,2.52,266.2,266.13,5.71298915]
[1737723011472,3.7567,266.21,266.13,5.71298915]
[1737723011670,6.2767,266.21,266.13,5.71298915]
[1737723011872,3.7567,266.21,266.16,5.68846413]
[1737723012068,3.7572,266.17,266.13,0.02452502]
[1737723012268,5.68846413,266.15,266.13,0.02452502]
[1737723012771,9.44596413,266.15,266.13,0.02452502]
[1737723012970,5.68846413,266.17,266.13,0.02452502]
[1737723013969,3.7235,266.2,266.14,5.68846413]
[1737723014164,1.2035,266.2,266.16,5.68846413]
[1737723014366,2.5721,266.22,266.16,5.68846413]
[1737723014568,2.5721,266.22,266.18,5.68846413]
[1737723015370,2.52,266.23,266.18,5.68846413]
[1737723015571,2.52,266.23,266.16,5.68846413]
[1737723016175,5.0353,266.26,266.21,5.68846413]
[1737723016571,5.0353,266.26,266.21,5.71536493]
[1737723016768,5.0353,266.26,266.21,0.0269008]
[1737723016972,10.72376413,266.26,266.21,0.0269008]
[1737723017168,3.7564,266.22,266.21,0.0269008]
[1737723018277,3.7568,266.2,266.15,5.68846413]
[1737723018475,5.68846413,266.24,266.15,5.68846413]
[1737723018674,10.72376413,266.26,266.17,5.68846413]
[1737723018876,0.69056828,266.25,266.17,5.68846413]
[1737723019276,5.68846413,266.24,266.15,5.68846413]
[1737723019476,0.69056828,266.23,266.18,0.02484957]
[1737723019678,3.7569,266.19,266.18,0.02484957]
[1737723020079,3.7573,266.16,266.15,5.68846413]
[1737723020280,5.68846413,266.21,266.12,5.68846413]
[1737723020873,3.7574,266.16,266.12,5.68846413]
[1737723022074,0.02855507,266.17,266.12,5.68846413]
[1737723022378,5.68846413,266.16,266.11,0.02727055]
[1737723022578,1.2961,266.15,266.11,0.02727055]
[1737723023079,3.7578,266.12,266.11,0.02727055]
[1737723023278,6.2778,266.12,266.11,0.02727055]
[1737723023774,2.52,266.12,266.05,5.68846413]
[1737723023978,3.7584,266.08,266.05,5.68846413]
[1737723024178,2.52,266.12,266.05,5.68846413]
[1737723024377,3.7583,266.09,266.05,5.68846413]
[1737723024780,2.52,266.12,266.05,5.68846413]
[1737723024980,3.7587,266.06,266.04,0.02420721]
[1737723025182,0.02452154,266.1,266.04,0.02420721]
[1737723025479,3.7586,266.07,266.04,5.71267134]
[1737723025683,0.02452154,266.1,266.06,5.68846413]
[1737723026784,0.02452154,266.1,266.09,5.68846413]
[1737723028578,2.52,266.17,266.09,9.44676413]
[1737723028781,2.52,266.17,266.12,5.68846413]
[1737723028978,5.68846413,266.24,266.12,5.68846413]
[1737723029182,2.52,266.2,266.12,5.68846413]
[1737723029587,3.7571,266.18,266.12,5.68846413]
[1737723029886,0.02421705,266.19,266.13,0.02669648]
[1737723030984,3.7571,266.17,266.13,0.02669648]
[1737723031382,5.68846413,266.15,266.13,0.02669648]
[1737723031686,5.68846413,266.15,266.06,5.68846413]
[1737723032686,0.02717281,266.13,266.08,0.02474154]
[1737723033083,0.02717281,266.13,266.09,5.68846413]
[1737723033288,0.02717281,266.13,266.12,5.68846413]
[1737723033785,0.02717281,266.13,266.09,3.7582]
[1737723034289,0.02717281,266.13,266.08,8.83602139]
[1737723035481,0.02717281,266.13,266.08,0.02474154]
[1737723037389,0.02717281,266.13,266.09,3.7583]
[1737723037589,0.02717281,266.13,266.08,0.02474154]
[1737723038595,0.02717281,266.13,266.09,3.7582]
[1737723038794,0.02717281,266.13,266.08,0.02474154]
[1737723039192,0.02717281,266.13,266.08,3.78304154]
[1737723039392,0.02717281,266.13,266.08,0.02474154]
[1737723039996,0.02717281,266.13,266.08,3.78314154]
[1737723040190,0.02717281,266.13,266.08,0.02474154]
[1737723040797,3.7583,266.09,266.08,0.02474154]
[1737723040998,0.02717281,266.13,266.08,0.02474154]
[1737723044098,3.7583,266.09,266.08,0.02474154]
[1737723044298,0.02717281,266.13,266.08,0.02474154]
[1737723045995,3.7581,266.11,266.08,0.02474154]
[1737723047302,3.7579,266.12,266.08,0.02474154]
[1737723047601,0.02717281,266.13,266.08,0.02474154]
[1737723049195,3.7583,266.09,266.08,0.02474154]
[1737723053908,3.7588,266.06,266.0,8.81127985]
[1737723054606,3.7586,266.07,266.0,8.81127985]
[1737723054805,1.2872,266.12,266.0,8.81127985]
[1737723055003,0.02459332,266.06,266.01,0.02560079]
[1737723056112,3.759,266.04,266.01,0.02560079]
[1737723056813,0.02459332,266.06,266.01,0.02560079]
[1737723057913,0.02459332,266.06,265.97,5.64419428]
[1737723058114,3.7593,266.02,265.97,5.64419428]
[1737723058811,2.52,266.03,266.0,5.64419428]
[1737723060015,0.02475707,266.04,266.0,5.64419428]
[1737723060215,0.02475707,266.04,266.03,5.64419428]
[1737723063018,0.02475707,266.04,266.0,5.64419428]
[1737723064916,0.02475707,266.04,265.97,5.67009392]
[1737723065520,5.66895135,266.04,265.97,0.02589964]
[1737723066019,3.7593,266.02,265.97,0.02589964]
[1737723066321,5.66895135,266.04,265.97,0.02589964]
[1737723067422,5.64419428,265.99,265.97,0.02589964]
[1737723067622,5.64419428,265.99,265.88,186.86729019]
[1737723067819,5.64419428,265.97,265.88,5.64419428]
[1737723068123,2.52,265.96,265.88,5.64419428]
[1737723068312,2.52,265.96,265.8,0.36655]
[1737723068313,5.64419428,265.95,265.86,5.64419428]
[1737723068513,5.64419428,265.93,265.84,5.64419428]
[1737723068718,5.66961709,265.93,265.88,0.02888879]
[1737723068921,3.7608,265.91,265.88,0.02888879]
[1737723069823,0.02542281,265.93,265.88,0.02888879]
[1737723070125,3.761,265.9,265.88,0.02888879]
[1737723070322,10.09376534,265.92,265.8,0.36655]
[1737723070627,1.2982,265.89,265.8,0.36655]
[1737723071226,8.82996534,265.88,265.73,181.22309591]
[1737723071528,0.02432846,265.87,265.82,0.0264404]
[1737723071828,3.7615,265.86,265.82,0.0264404]
[1737723072124,0.02432846,265.87,265.73,181.22309591]
[1737723073129,8.82996534,265.84,265.73,181.22309591]
[1737723073426,2.52,265.83,265.77,0.02393257]
[1737723073626,0.02552446,265.81,265.77,0.02393257]
[1737723074822,0.02552446,265.81,265.68,8.82996534]
[1737723075030,8.82996534,265.8,265.67,3.7641]
[1737723075423,3.7627,265.78,265.68,3.764]
[1737723076029,0.02819321,265.76,265.7,0.02711701]
[1737723077324,0.02819321,265.76,265.72,3.7635]
[1737723078827,0.02819321,265.76,265.7,0.02711701]
[1737723079031,0.02819321,265.76,265.7,3.79081701]
[1737723079733,0.02819321,265.76,265.7,0.02711701]
[1737723081031,8.82996534,265.75,265.7,0.02711701]
[1737723081228,8.82996534,265.71,265.55,8.82996534]
[1737723081635,3.7644,265.66,265.56,3.7657]
[1737723081830,1.2138,265.7,265.54,181.22309591]
[1737723082040,8.82996534,265.83,265.66,8.82996534]
[1737723082340,0.02570923,265.77,265.72,0.02765188]
[1737723083331,8.82996534,265.75,265.61,190.05306125]
[1737723083532,8.82996534,265.75,265.61,181.22309591]
[1737723084538,0.02746526,265.71,265.65,0.02459033]
[1737723084739,2.54746526,265.71,265.65,0.02459033]
[1737723085740,11.3774306,265.71,265.65,0.02459033]
[1737723086238,2.4856,265.7,265.65,0.02459033]
[1737723087241,2.4856,265.7,265.53,8.82996534]
[1737723087442,8.82996534,265.67,265.53,8.82996534]
[1737723087836,8.82996534,265.67,265.55,3.7658]
[1737723087837,3.7647,265.64,265.55,3.7658]
[1737723088437,0.025843,265.62,265.57,0.02481353]
[1737723091042,3.7654,265.59,265.57,0.02481353]
[1737723091241,2.52,265.58,265.57,0.02481353]
[1737723092644,2.52,265.58,265.57,3.79041353]
[1737723092844,2.52,265.58,265.57,0.02481353]
[1737723095744,0.025843,265.62,265.58,3.7654]
[1737723095949,0.025843,265.62,265.57,0.02481353]
[1737723096344,0.025843,265.62,265.61,3.7651]
[1737723097453,2.52,265.74,265.61,8.82996534]
[1737723097852,5.0693,265.78,265.68,3.764]
[1737723098248,2.52,265.77,265.61,8.82996534]
[1737723098749,0.02521229,265.72,265.7,3.7637]
[1737723101847,0.02521229,265.72,265.66,0.02401098]
[1737723106051,3.7638,265.7,265.66,0.02401098]
[1737723107948,3.7637,265.71,265.66,0.02401098]
[1737723108156,0.02521229,265.72,265.66,0.02401098]
[1737723109146,3.7639,265.69,265.66,0.02401098]
[1737723109353,8.82996534,265.71,265.66,0.02401098]
[1737723110056,3.764,265.69,265.66,0.02401098]
[1737723114160,8.82996534,265.71,265.66,0.02401098]
[1737723115061,3.764,265.69,265.66,0.02401098]
[1737723119362,3.7642,265.67,265.66,0.02401098]
[1737723119665,9.42644765,265.67,265.66,0.02401098]
[1737723122864,5.66224765,265.67,265.66,0.02401098]
[1737723123067,9.42614765,265.7,265.66,0.02401098]
[1737723127762,11.94614765,265.7,265.66,0.02401098]
[1737723128767,2.54521229,265.72,265.66,0.02401098]
[1737723129869,0.02521229,265.72,265.66,0.02401098]
[1737723133577,0.02521229,265.72,265.66,3.78831098]
[1737723136076,0.02521229,265.72,265.66,0.02401098]
[1737723136274,0.02521229,265.72,265.69,5.66224765]
[1737723136680,0.02521229,265.72,265.71,3.7636]
[1737723139979,0.02521229,265.72,265.71,9.42584765]
[1737723141883,5.66224765,265.79,265.71,9.42584765]
[1737723141884,6.88914765,265.83,265.76,3.7629]
[1737723142283,6.88914765,265.83,265.75,5.66224765]
[1737723142578,5.66224765,265.83,265.78,3.7626]
[1737723142783,1.2555,265.84,265.78,3.7626]
[1737723143179,1.28432287,265.84,265.78,0.02463358]
[1737723143374,5.66224765,265.79,265.78,0.02463358]
[1737723143681,5.66224765,265.79,265.67,5.66224765]
[1737723143884,5.66224765,265.75,265.66,181.22309591]
[1737723144782,0.02466208,265.73,265.68,0.0252055]
[1737723146780,0.02466208,265.73,265.68,5.68745315]
[1737723147682,0.02466208,265.73,265.7,3.7638]
[1737723147985,0.02466208,265.73,265.68,5.68745315]
[1737723148180,0.02466208,265.73,265.72,3.7635]
[1737723154590,3.7622,265.82,265.76,3.7628]
[1737723154789,5.66224765,265.88,265.78,5.66224765]
[1737723154992,4.45307654,265.87,265.8,5.66224765]
[1737723155291,2.52,265.89,265.82,5.66224765]
[1737723155789,0.0246019,265.88,265.83,0.02571761]
[1737723157082,5.66224765,265.84,265.69,1.2523]
[1737723157288,9.42454765,265.81,265.71,9.42574765]
[1737723157883,9.42454765,265.81,265.72,3.7635]
[1737723158089,3.7624,265.8,265.72,3.7635]
[1737723158292,0.0244369,265.79,265.74,0.0248536]
[1737723161994,3.7629,265.77,265.74,0.0248536]
[1737723162488,3.7629,265.76,265.74,0.0248536]
[1737723163490,9.42534765,265.75,265.74,0.0248536]
[1737723166797,5.66224765,265.75,265.74,0.0248536]
[1737723166996,6.283,265.76,265.74,0.0248536]
[1737723167191,2.52,265.76,265.74,0.0248536]
[1737723178902,6.283,265.76,265.74,0.0248536]
[1737723179106,2.52,265.76,265.74,0.0248536]
[1737723182007,3.7869369,265.79,265.74,0.0248536]
[1737723182903,5.66224765,265.73,265.66,181.22309591]
[1737723183208,5.66224765,265.73,265.63,0.36249]
[1737723183406,5.66224765,265.7,265.63,0.36249]
[1737723184103,0.02631072,265.69,265.64,0.02509435]
[1737723185005,5.66224765,265.67,265.64,0.02509435]
[1737723185206,3.7645,265.65,265.64,0.02509435]
[1737723186905,2.52,265.66,265.64,0.02509435]
[1737723188008,6.2844,265.66,265.64,0.02509435]
[1737723189814,2.52,265.66,265.64,0.02509435]
[1737723191912,6.2844,265.66,265.64,0.02509435]
[1737723192113,2.52,265.66,265.64,0.02509435]
[1737723192419,3.7645,265.65,265.64,0.02509435]
[1737723192718,9.42674765,265.65,265.64,0.02509435]
[1737723192916,5.66224765,265.65,265.58,2.29598341]
[1737723194117,3.7649,265.63,265.59,0.02594137]
[1737723195519,5.66224765,265.63,265.59,0.02594137]
[1737723196717,5.66224765,265.61,265.59,0.02594137]
[1737723197719,3.7652,265.6,265.59,0.02594137]
[1737723198718,5.66224765,265.61,265.5,5.66224765]
[1737723198919,9.42784765,265.58,265.5,5.66224765]
[1737723199821,9.42784765,265.58,265.5,9.42884765]
[1737723200020,0.02460137,265.57,265.5,9.42884765]
[1737723200521,3.7659,265.55,265.48,5.66224765]
[1737723200714,5.66224765,265.56,265.48,5.66224765]
[1737723200912,0.02610065,265.54,265.48,5.66224765]
[1737723202522,0.02610065,265.54,265.47,3.767]
[1737723202716,0.02610065,265.54,265.46,5.66224765]
[1737723202923,3.79220065,265.54,265.46,5.66224765]
[1737723203223,0.02610065,265.54,265.46,5.66224765]
[1737723203723,3.7662,265.53,265.46,5.66224765]
[1737723204023,0.02610065,265.54,265.46,5.66224765]
[1737723205123,3.79210065,265.54,265.46,9.42944765]
[1737723206320,0.02610065,265.54,265.46,9.42944765]
[1737723206727,5.6883483,265.54,265.46,9.42944765]
[1737723207022,5.66224765,265.5,265.42,5.66224765]
[1737723207326,5.66224765,265.44,265.31,5.66224765]
[1737723207527,5.66224765,265.39,265.31,5.66224765]
[1737723207726,3.7684,265.38,265.29,5.66224765]
[1737723208226,9.43134765,265.33,265.23,8.96846377]
[1737723208725,5.68966402,265.31,265.23,8.96846377]
[1737723209222,0.02741637,265.31,265.25,5.66224765]
[1737723209417,5.66224765,265.35,265.27,5.66224765]
[1737723210626,5.66224765,265.33,265.26,3.7699]
[1737723211125,5.66224765,265.33,265.25,0.02884907]
[1737723211626,0.02709225,265.34,265.31,3.7692]
[1737723211822,0.02709225,265.34,265.29,5.66224765]
[1737723212023,0.02709225,265.34,265.25,0.02884907]
[1737723212024,0.02709225,265.34,265.27,5.66224765]
[1737723213125,0.02709225,265.34,265.29,3.7696]
[1737723214529,0.02709225,265.34,265.3,3.7694]
[1737723215421,5.6893399,265.34,265.25,5.69109672]
[1737723216929,0.02709225,265.34,265.31,5.66224765]
[1737723217430,0.02709225,265.34,265.32,3.7692]
[1737723219130,0.02709225,265.34,265.3,0.02868563]
[1737723219332,0.02709225,265.34,265.31,3.7693]
[1737723220229,0.02709225,265.34,265.3,0.02868563]
[1737723220430,0.02709225,265.34,265.32,3.7692]
[1737723221225,0.02709225,265.34,265.33,3.769]
[1737723222729,0.02709225,265.34,265.3,0.02868563]
[1737723222924,0.02709225,265.34,265.31,3.7693]
[1737723223832,0.02709225,265.34,265.3,0.02868563]
[1737723224431,0.02709225,265.34,265.3,3.79798563]
[1737723224634,0.02709225,265.34,265.3,0.02868563]
[1737723225436,5.66224765,265.32,265.3,0.02868563]
[1737723227834,0.02709225,265.34,265.3,0.02868563]
[1737723229135,0.02709225,265.34,265.33,3.769]
[1737723229439,0.02709225,265.34,265.3,0.02868563]
[1737723231845,0.02709225,265.34,265.33,3.769]
[1737723236244,5.66224765,265.43,265.38,3.7682]
[1737723236450,2.52,265.44,265.36,5.66224765]
[1737723236749,2.52,265.44,265.39,3.7681]
[1737723236950,2.52,265.44,265.36,5.66224765]
[1737723237250,8.18224765,265.47,265.38,5.66224765]
[1737723237554,0.02720714,265.43,265.42,3.7676]
[1737723241552,0.02720714,265.43,265.38,5.66224765]
[1737723241855,0.02720714,265.43,265.37,0.02864919]
[1737723242352,0.02720714,265.43,265.38,3.7683]
[1737723244755,5.66224765,265.42,265.37,0.02864919]
[1737723244950,5.66224765,265.39,265.37,0.02864919]
[1737723245152,0.9421699,265.38,265.37,0.02864919]
[1737723246950,5.66224765,265.42,265.37,0.02864919]
[1737723247147,5.66224765,265.42,265.37,3.79714919]
[1737723248155,5.66224765,265.42,265.37,0.02864919]
[1737723251060,0.02720714,265.43,265.37,0.02864919]
[1737723251061,5.66224765,265.39,265.37,0.02864919]
[1737723252562,5.66224765,265.42,265.37,0.02864919]
[1737723253061,0.02720714,265.43,265.39,3.7682]
[1737723253360,0.02720714,265.43,265.37,0.02864919]
[1737723253756,0.02720714,265.43,265.39,3.7682]
[1737723254560,0.02720714,265.43,265.38,3.7683]
[1737723254964,0.02720714,265.43,265.41,3.7679]
[1737723255266,0.02720714,265.43,265.37,0.02864919]
[1737723256465,0.02720714,265.43,265.4,3.768]
[1737723258367,0.02720714,265.43,265.37,0.02864919]
[1737723259270,0.02720714,265.43,265.39,3.768]
[1737723260665,0.02720714,265.43,265.4,3.768]
[1737723261259,0.02720714,265.43,265.39,3.7682]
[1737723262468,0.02720714,265.43,265.39,5.66224765]
[1737723262666,0.02720714,265.43,265.42,3.7677]
[1737723262967,0.02720714,265.43,265.42,9.42994765]
[1737723263563,1.3143,265.51,265.42,5.66224765]
[1737723263767,2.52,265.53,265.49,3.7666]
[1737723265067,0.0272351,265.54,265.49,3.7666]
[1737723265268,0.0272351,265.54,265.48,0.0244232]
[1737723265269,0.0272351,265.54,265.52,3.7663]